[Event "Early-Titled-Tuesday-Blitz-January-30-2024"]
[Site "Chess.com"]
[Date "2024.01.30"]
[Round "3"]
[White "ilushka"]
[Black "Bushonica"]
[Result "1-0"]
[WhiteElo "2339"]
[BlackElo "1806"]
[TimeControl "180+1"]
[EndTime "8:26:10 PST"]
[Termination "ilushka won by resignation"]

1. e4 {[%clk 0:03:00.9]} 1... e5 {[%clk 0:02:59.5]} 2. Nf3 {[%clk 0:03:01.3]}
2... Nf6 {[%clk 0:02:58.8]} 3. Nc3 {[%clk 0:03:00.7]} 3... d6 {[%clk 0:02:56.4]}
4. Bc4 {[%clk 0:03:00.4]} 4... Be7 {[%clk 0:02:55.5]} 5. O-O {[%clk 0:02:59]}
5... O-O {[%clk 0:02:55.3]} 6. h3 {[%clk 0:02:58.6]} 6... c6 {[%clk 0:02:54.7]}
7. d4 {[%clk 0:02:58.5]} 7... exd4 {[%clk 0:02:54.2]} 8. Nxd4 {[%clk 0:02:54.6]}
8... Nbd7 {[%clk 0:02:51]} 9. Bb3 {[%clk 0:02:52.4]} 9... Nc5 {[%clk 0:02:50.5]}
10. Re1 {[%clk 0:02:50.7]} 10... Nxb3 {[%clk 0:02:49.3]} 11. axb3 {[%clk
0:02:50.8]} 11... Be6 {[%clk 0:02:48.5]} 12. Nxe6 {[%clk 0:02:49]} 12... fxe6
{[%clk 0:02:48.3]} 13. e5 {[%clk 0:02:47.9]} 13... Nd5 {[%clk 0:02:47.2]} 14.
exd6 {[%clk 0:02:45.3]} 14... Qxd6 {[%clk 0:02:46.4]} 15. Ne4 {[%clk 0:02:41]}
15... Qe5 {[%clk 0:02:42.2]} 16. Qe2 {[%clk 0:02:24.1]} 16... Nf4 {[%clk
0:02:36.4]} 17. Bxf4 {[%clk 0:02:23.1]} 17... Qxf4 {[%clk 0:02:35.9]} 18. Ng3
{[%clk 0:02:16.5]} 18... Bf6 {[%clk 0:02:31.8]} 19. Qxe6+ {[%clk 0:02:13.3]}
19... Kh8 {[%clk 0:02:31.6]} 20. Nh5 {[%clk 0:02:02.2]} 20... Bxb2 {[%clk
0:02:24.6]} 21. Nxf4 {[%clk 0:02:01.4]} 21... Bxa1 {[%clk 0:02:22.5]} 22. Rxa1
{[%clk 0:01:57.2]} 22... Rxf4 {[%clk 0:02:21.5]} 23. Rxa7 {[%clk 0:01:55.7]}
23... Rff8 {[%clk 0:02:17.9]} 24. Rxa8 {[%clk 0:01:52.9]} 1-0

[Event "Early-Titled-Tuesday-Blitz-January-30-2024"]
[Site "Chess.com"]
[Date "2024.01.30"]
[Round "3"]
[White "FREDERICKtheMATE"]
[Black "Me_ch_an"]
[Result "1-0"]
[WhiteElo "2573"]
[BlackElo "2317"]
[TimeControl "180+1"]
[EndTime "8:26:19 PST"]
[Termination "FREDERICKtheMATE won by resignation"]

1. d4 {[%clk 0:03:00.9]} 1... d5 {[%clk 0:02:57.4]} 2. c4 {[%clk 0:03:01.5]}
2... dxc4 {[%clk 0:02:57.4]} 3. e3 {[%clk 0:03:01.3]} 3... e5 {[%clk 0:02:57.3]}
4. Bxc4 {[%clk 0:03:01.5]} 4... exd4 {[%clk 0:02:57.5]} 5. exd4 {[%clk
0:03:02.4]} 5... Nf6 {[%clk 0:02:58]} 6. Nc3 {[%clk 0:03:02.8]} 6... Bd6 {[%clk
0:02:58.5]} 7. Nf3 {[%clk 0:03:03.2]} 7... O-O {[%clk 0:02:58.8]} 8. O-O {[%clk
0:03:03.6]} 8... h6 {[%clk 0:02:57.7]} 9. h3 {[%clk 0:03:03.9]} 9... Nc6 {[%clk
0:02:57.5]} 10. Re1 {[%clk 0:03:03]} 10... Bf5 {[%clk 0:02:57.4]} 11. Ne5 {[%clk
0:03:02.7]} 11... Bxe5 {[%clk 0:02:45.5]} 12. dxe5 {[%clk 0:03:03.6]} 12... Qxd1
{[%clk 0:02:45.4]} 13. Nxd1 {[%clk 0:03:04.5]} 13... Rfe8 {[%clk 0:02:16.7]} 14.
f4 {[%clk 0:03:03.2]} 14... Nd4 {[%clk 0:02:11.5]} 15. Ne3 {[%clk 0:03:01.5]}
15... Nd7 {[%clk 0:02:04.4]} 16. Rd1 {[%clk 0:02:55.8]} 16... Be6 {[%clk
0:00:59.1]} 17. Rxd4 {[%clk 0:02:54.3]} 1-0

[Event "Early-Titled-Tuesday-Blitz-January-30-2024"]
[Site "Chess.com"]
[Date "2024.01.30"]
[Round "3"]
[White "AlexeiShirov"]
[Black "lelajavakhishvili"]
[Result "1-0"]
[WhiteElo "2751"]
[BlackElo "2508"]
[TimeControl "180+1"]
[EndTime "8:26:21 PST"]
[Termination "AlexeiShirov won by resignation"]

1. Nf3 {[%clk 0:03:00.9]} 1... c5 {[%clk 0:02:56.9]} 2. e4 {[%clk 0:02:59.3]}
2... Nc6 {[%clk 0:02:56.8]} 3. d4 {[%clk 0:02:58.8]} 3... cxd4 {[%clk
0:02:56.8]} 4. Nxd4 {[%clk 0:02:58.9]} 4... e5 {[%clk 0:02:57.4]} 5. Nb5 {[%clk
0:02:57.5]} 5... d6 {[%clk 0:02:57.7]} 6. c4 {[%clk 0:02:55.1]} 6... g6 {[%clk
0:02:51.4]} 7. h4 {[%clk 0:02:46.6]} 7... Nf6 {[%clk 0:02:45.2]} 8. Bg5 {[%clk
0:02:42.4]} 8... Qa5+ {[%clk 0:02:33.5]} 9. b4 {[%clk 0:02:32.9]} 9... Nxb4
{[%clk 0:02:29.3]} 10. Bxf6 {[%clk 0:02:28.6]} 10... Nd3+ {[%clk 0:01:31.2]} 11.
Ke2 {[%clk 0:02:27.9]} 11... Nf4+ {[%clk 0:01:30.8]} 12. Kf3 {[%clk 0:02:23.7]}
12... h5 {[%clk 0:01:29.2]} 13. Nxd6+ {[%clk 0:02:14.8]} 13... Bxd6 {[%clk
0:01:28.3]} 14. Qxd6 {[%clk 0:02:13.8]} 1-0

[Event "Early-Titled-Tuesday-Blitz-January-30-2024"]
[Site "Chess.com"]
[Date "2024.01.30"]
[Round "3"]
[White "cycygogne"]
[Black "Statham_01"]
[Result "0-1"]
[WhiteElo "2283"]
[BlackElo "2556"]
[TimeControl "180+1"]
[EndTime "8:26:47 PST"]
[Termination "Statham_01 won by resignation"]

1. Nf3 {[%clk 0:02:53.7]} 1... e5 {[%clk 0:02:59.4]} 2. Nxe5 {[%clk 0:02:52.9]}
2... Nc6 {[%clk 0:03:00.3]} 3. Nxc6 {[%clk 0:02:52]} 3... dxc6 {[%clk
0:03:01.2]} 4. e4 {[%clk 0:02:50.6]} 4... Nf6 {[%clk 0:03:00.8]} 5. d3 {[%clk
0:02:43.5]} 5... Bc5 {[%clk 0:03:00.7]} 6. Be2 {[%clk 0:02:42.6]} 6... h5 {[%clk
0:03:00.6]} 7. Be3 {[%clk 0:02:39.6]} 7... Bxe3 {[%clk 0:02:55.7]} 8. fxe3
{[%clk 0:02:40.5]} 8... Ng4 {[%clk 0:02:56]} 9. Qd2 {[%clk 0:02:37.7]} 9... Qh4+
{[%clk 0:02:53.8]} 10. g3 {[%clk 0:02:37.2]} 10... Qg5 {[%clk 0:02:54.2]} 11.
Bxg4 {[%clk 0:02:32]} 11... Bxg4 {[%clk 0:02:55.1]} 12. Nc3 {[%clk 0:02:28.6]}
12... h4 {[%clk 0:02:52.5]} 13. gxh4 {[%clk 0:02:23.3]} 13... Rxh4 {[%clk
0:02:53.4]} 14. Ne2 {[%clk 0:02:14.8]} 14... Rh3 {[%clk 0:02:53.1]} 15. Ng3
{[%clk 0:02:02.7]} 15... O-O-O {[%clk 0:02:44.2]} 16. Qf2 {[%clk 0:02:01.7]}
16... Qa5+ {[%clk 0:02:32.6]} 17. Kf1 {[%clk 0:01:36]} 17... Rd6 {[%clk
0:02:31.7]} 18. Kg2 {[%clk 0:01:29.4]} 18... Rf6 {[%clk 0:02:26.3]} 19. Qg1
{[%clk 0:01:00.6]} 19... Qd2+ {[%clk 0:02:22.1]} 0-1

[Event "Early-Titled-Tuesday-Blitz-January-30-2024"]
[Site "Chess.com"]
[Date "2024.01.30"]
[Round "3"]
[White "jens1102"]
[Black "SuanFernandes"]
[Result "1-0"]
[WhiteElo "2577"]
[BlackElo "2331"]
[TimeControl "180+1"]
[EndTime "8:27:02 PST"]
[Termination "jens1102 won by resignation"]

1. d4 {[%clk 0:03:00.9]} 1... d5 {[%clk 0:03:00.2]} 2. c4 {[%clk 0:03:01.6]}
2... Nf6 {[%clk 0:03:00]} 3. Nc3 {[%clk 0:03:02]} 3... e6 {[%clk 0:03:00.1]} 4.
Nf3 {[%clk 0:03:01.4]} 4... a6 {[%clk 0:02:59.9]} 5. Bg5 {[%clk 0:02:58.4]} 5...
dxc4 {[%clk 0:02:59.9]} 6. e4 {[%clk 0:02:58.6]} 6... b5 {[%clk 0:02:59.9]} 7.
e5 {[%clk 0:02:58.9]} 7... h6 {[%clk 0:03:00]} 8. Bh4 {[%clk 0:02:58.8]} 8... g5
{[%clk 0:03:00.3]} 9. Nxg5 {[%clk 0:02:59.5]} 9... hxg5 {[%clk 0:03:01]} 10.
Bxg5 {[%clk 0:03:00.4]} 10... Nbd7 {[%clk 0:03:01.1]} 11. exf6 {[%clk 0:02:54]}
11... Bb7 {[%clk 0:02:58]} 12. h4 {[%clk 0:02:53.3]} 12... Nxf6 {[%clk
0:02:55.9]} 13. Rh3 {[%clk 0:02:50.7]} 13... Be7 {[%clk 0:02:55.5]} 14. a4
{[%clk 0:02:40.6]} 14... b4 {[%clk 0:02:29.7]} 15. Nb1 {[%clk 0:02:32.3]} 15...
Qd5 {[%clk 0:01:39]} 16. Qc2 {[%clk 0:02:21.6]} 16... Qxd4 {[%clk 0:01:31.8]}
17. Nd2 {[%clk 0:01:42.6]} 17... c3 {[%clk 0:01:25.5]} 18. bxc3 {[%clk
0:01:42.5]} 18... Qxc3 {[%clk 0:01:23.1]} 19. Rxc3 {[%clk 0:01:40.4]} 19... bxc3
{[%clk 0:01:24]} 20. Qxc3 {[%clk 0:01:41.2]} 1-0

[Event "Early-Titled-Tuesday-Blitz-January-30-2024"]
[Site "Chess.com"]
[Date "2024.01.30"]
[Round "3"]
[White "Zohid6"]
[Black "thesupera12"]
[Result "1-0"]
[WhiteElo "2858"]
[BlackElo "2537"]
[TimeControl "180+1"]
[EndTime "8:27:03 PST"]
[Termination "Zohid6 won by resignation"]

1. e4 {[%clk 0:03:00.9]} 1... c5 {[%clk 0:02:59]} 2. Nf3 {[%clk 0:02:59.7]} 2...
e6 {[%clk 0:02:58.1]} 3. d4 {[%clk 0:02:58.6]} 3... cxd4 {[%clk 0:02:59]} 4.
Nxd4 {[%clk 0:02:59.5]} 4... Qb6 {[%clk 0:02:59]} 5. Nc3 {[%clk 0:02:59.7]} 5...
Nc6 {[%clk 0:02:59.5]} 6. Nxc6 {[%clk 0:02:59.1]} 6... bxc6 {[%clk 0:02:58.8]}
7. Bd3 {[%clk 0:02:59.6]} 7... d5 {[%clk 0:02:58.6]} 8. O-O {[%clk 0:03:00.1]}
8... Nf6 {[%clk 0:02:58.1]} 9. a4 {[%clk 0:02:58.4]} 9... Bb4 {[%clk 0:02:54.9]}
10. Qf3 {[%clk 0:02:53.4]} 10... O-O {[%clk 0:02:44.9]} 11. Bg5 {[%clk
0:02:51.3]} 11... Bxc3 {[%clk 0:02:41.4]} 12. bxc3 {[%clk 0:02:47.9]} 12... Nxe4
{[%clk 0:02:41.2]} 13. Bxe4 {[%clk 0:02:48.8]} 13... dxe4 {[%clk 0:02:41.6]} 14.
Qxe4 {[%clk 0:02:49.6]} 14... Qc5 {[%clk 0:02:39.7]} 15. Bd2 {[%clk 0:02:35.3]}
15... Ba6 {[%clk 0:02:35.1]} 16. Rfd1 {[%clk 0:02:35.5]} 16... Rfd8 {[%clk
0:02:29.2]} 17. Be1 {[%clk 0:02:35.4]} 17... h6 {[%clk 0:02:23.9]} 18. h3 {[%clk
0:02:33.9]} 18... Bc4 {[%clk 0:02:20.2]} 19. Kh2 {[%clk 0:02:27.8]} 19... Rd5
{[%clk 0:02:18]} 20. f3 {[%clk 0:02:18.3]} 20... Rad8 {[%clk 0:02:09.6]} 21.
Rxd5 {[%clk 0:02:17.4]} 21... Qxd5 {[%clk 0:02:03.6]} 22. Qe3 {[%clk 0:02:11.3]}
22... a6 {[%clk 0:02:00.4]} 23. Rb1 {[%clk 0:02:08.7]} 23... Rd7 {[%clk
0:01:45.1]} 24. Bg3 {[%clk 0:02:07.3]} 24... Qf5 {[%clk 0:01:36.7]} 25. Rb4
{[%clk 0:02:04.4]} 25... Bd5 {[%clk 0:01:34.8]} 26. c4 {[%clk 0:02:04.5]} 26...
c5 {[%clk 0:01:28.3]} 27. Rb8+ {[%clk 0:02:03.7]} 27... Kh7 {[%clk 0:01:27.7]}
28. cxd5 {[%clk 0:02:04.3]} 28... exd5 {[%clk 0:01:23.7]} 29. Qxc5 {[%clk
0:02:03]} 1-0

[Event "Early-Titled-Tuesday-Blitz-January-30-2024"]
[Site "Chess.com"]
[Date "2024.01.30"]
[Round "3"]
[White "NowInChess"]
[Black "betta2004"]
[Result "0-1"]
[WhiteElo "2267"]
[BlackElo "2523"]
[TimeControl "180+1"]
[EndTime "8:27:14 PST"]
[Termination "betta2004 won by resignation"]

1. e4 {[%clk 0:03:00.9]} 1... e5 {[%clk 0:02:45]} 2. Nf3 {[%clk 0:03:00.1]} 2...
Nf6 {[%clk 0:02:44.9]} 3. Nc3 {[%clk 0:02:59.5]} 3... Bc5 {[%clk 0:02:43.4]} 4.
Nxe5 {[%clk 0:02:58.4]} 4... Nc6 {[%clk 0:02:42.7]} 5. Nxc6 {[%clk 0:02:52]}
5... dxc6 {[%clk 0:02:43.6]} 6. Be2 {[%clk 0:02:48.7]} 6... h5 {[%clk
0:02:43.6]} 7. h3 {[%clk 0:02:47.8]} 7... Qd4 {[%clk 0:02:43.2]} 8. Rf1 {[%clk
0:02:26.8]} 8... Nxe4 {[%clk 0:02:41.3]} 9. Nxe4 {[%clk 0:02:25.6]} 9... Qxe4
{[%clk 0:02:42.2]} 10. d3 {[%clk 0:02:20.9]} 10... Qxg2 {[%clk 0:02:41.3]} 11.
Bf3 {[%clk 0:02:15.5]} 11... Qxh3 {[%clk 0:02:37.7]} 12. Qe2+ {[%clk 0:02:15.3]}
12... Be6 {[%clk 0:02:32.2]} 13. Bf4 {[%clk 0:02:14.3]} 13... O-O-O {[%clk
0:02:29.7]} 14. O-O-O {[%clk 0:01:46.8]} 14... Qf5 {[%clk 0:02:20.6]} 15. Qe5
{[%clk 0:01:41.3]} 15... Qxe5 {[%clk 0:02:14.7]} 16. Bxe5 {[%clk 0:01:42.2]}
16... f6 {[%clk 0:02:15.1]} 17. Bh2 {[%clk 0:01:38.1]} 17... Bd5 {[%clk
0:02:10.9]} 18. Bxd5 {[%clk 0:01:33.2]} 18... cxd5 {[%clk 0:02:11.8]} 19. d4
{[%clk 0:01:30.8]} 19... Bd6 {[%clk 0:02:11.9]} 20. Bxd6 {[%clk 0:01:29.1]}
20... Rxd6 {[%clk 0:02:12.8]} 21. Rde1 {[%clk 0:01:29.5]} 21... Kd7 {[%clk
0:02:12.8]} 22. Rg1 {[%clk 0:01:29.5]} 22... g5 {[%clk 0:02:05]} 23. f4 {[%clk
0:01:29.9]} 23... g4 {[%clk 0:02:04.8]} 24. Rh1 {[%clk 0:01:30.5]} 24... f5
{[%clk 0:02:04.6]} 25. Reg1 {[%clk 0:01:31.1]} 25... Re6 {[%clk 0:02:04.2]} 26.
Rh4 {[%clk 0:01:31.7]} 26... Re4 {[%clk 0:02:04.3]} 27. Rgh1 {[%clk 0:01:31.7]}
27... Rxf4 {[%clk 0:02:04]} 28. Rxh5 {[%clk 0:01:31.3]} 28... Rxh5 {[%clk
0:02:04.8]} 29. Rxh5 {[%clk 0:01:31.7]} 29... g3 {[%clk 0:02:02.4]} 30. Rg5
{[%clk 0:01:28.5]} 30... Rg4 {[%clk 0:02:02.8]} 0-1

[Event "Early-Titled-Tuesday-Blitz-January-30-2024"]
[Site "Chess.com"]
[Date "2024.01.30"]
[Round "3"]
[White "Elsa167"]
[Black "averageFM"]
[Result "1-0"]
[WhiteElo "2846"]
[BlackElo "2564"]
[TimeControl "180+1"]
[EndTime "8:27:18 PST"]
[Termination "Elsa167 won by resignation"]

1. d4 {[%clk 0:03:00.9]} 1... Nf6 {[%clk 0:02:58.1]} 2. c4 {[%clk 0:03:01]} 2...
c5 {[%clk 0:02:58.1]} 3. d5 {[%clk 0:03:01.2]} 3... b5 {[%clk 0:02:58]} 4. cxb5
{[%clk 0:03:02.1]} 4... a6 {[%clk 0:02:58.4]} 5. bxa6 {[%clk 0:03:03]} 5... g6
{[%clk 0:02:58.4]} 6. Nc3 {[%clk 0:03:03.1]} 6... Bxa6 {[%clk 0:02:52.8]} 7. e4
{[%clk 0:03:01.9]} 7... Bxf1 {[%clk 0:02:50]} 8. Kxf1 {[%clk 0:03:02.8]} 8... d6
{[%clk 0:02:48.2]} 9. Nf3 {[%clk 0:03:03.3]} 9... Bg7 {[%clk 0:02:48.1]} 10. g3
{[%clk 0:03:03.8]} 10... O-O {[%clk 0:02:48.2]} 11. Kg2 {[%clk 0:03:04.5]} 11...
Na6 {[%clk 0:02:48]} 12. Re1 {[%clk 0:03:04]} 12... Qd7 {[%clk 0:02:45.5]} 13.
e5 {[%clk 0:02:55.6]} 13... dxe5 {[%clk 0:02:43.5]} 14. Nxe5 {[%clk 0:02:55.3]}
14... Qb7 {[%clk 0:02:40.4]} 15. Qf3 {[%clk 0:02:49.5]} 15... Nb4 {[%clk
0:02:36.8]} 16. Rd1 {[%clk 0:02:00.3]} 16... Nfxd5 {[%clk 0:02:27.5]} 17. Nxd5
{[%clk 0:02:00.5]} 17... Bxe5 {[%clk 0:02:27.2]} 18. Nf6+ {[%clk 0:01:57.8]}
18... Bxf6 {[%clk 0:02:27.1]} 19. Qxb7 {[%clk 0:01:58.7]} 19... Nc2 {[%clk
0:02:24]} 20. Rb1 {[%clk 0:01:56.2]} 20... Rab8 {[%clk 0:02:23.7]} 21. Qf3
{[%clk 0:01:42]} 21... Nd4 {[%clk 0:02:21.2]} 22. Qe4 {[%clk 0:01:40.9]} 22...
Bg7 {[%clk 0:02:20.1]} 23. Bf4 {[%clk 0:01:40.2]} 23... Ra8 {[%clk 0:02:13.4]}
24. Qxe7 {[%clk 0:01:38.3]} 24... Rxa2 {[%clk 0:02:08.3]} 25. Qxc5 {[%clk
0:01:36.3]} 25... Ne6 {[%clk 0:02:08.4]} 26. Qc4 {[%clk 0:01:35.6]} 26... Rfa8
{[%clk 0:02:07.4]} 27. b4 {[%clk 0:01:33.5]} 27... h5 {[%clk 0:02:04.7]} 28. b5
{[%clk 0:01:31.1]} 28... h4 {[%clk 0:02:04.8]} 29. b6 {[%clk 0:01:31.1]} 29...
g5 {[%clk 0:02:04.5]} 30. b7 {[%clk 0:01:28.9]} 30... gxf4 {[%clk 0:02:04.4]}
31. bxa8=Q+ {[%clk 0:01:28.6]} 31... Rxa8 {[%clk 0:02:04.1]} 32. gxf4 {[%clk
0:01:22.9]} 32... Bh6 {[%clk 0:02:03.9]} 33. f5 {[%clk 0:01:21.5]} 33... Nf4+
{[%clk 0:02:03.6]} 34. Kh1 {[%clk 0:01:21.4]} 1-0

[Event "Early-Titled-Tuesday-Blitz-January-30-2024"]
[Site "Chess.com"]
[Date "2024.01.30"]
[Round "3"]
[White "Chesstiger64"]
[Black "InitiatingASC"]
[Result "0-1"]
[WhiteElo "2197"]
[BlackElo "2419"]
[TimeControl "180+1"]
[EndTime "8:27:20 PST"]
[Termination "InitiatingASC won by checkmate"]

1. d4 {[%clk 0:02:55.5]} 1... d5 {[%clk 0:02:58.5]} 2. Nf3 {[%clk 0:02:55.7]}
2... Bf5 {[%clk 0:02:55.6]} 3. e3 {[%clk 0:02:55.6]} 3... c6 {[%clk 0:02:55.2]}
4. c4 {[%clk 0:02:55.6]} 4... e6 {[%clk 0:02:54.9]} 5. Nc3 {[%clk 0:02:56.2]}
5... Nf6 {[%clk 0:02:54.8]} 6. Be2 {[%clk 0:02:56.8]} 6... Be7 {[%clk
0:02:53.3]} 7. Nh4 {[%clk 0:02:56.8]} 7... Bg6 {[%clk 0:02:47.6]} 8. Nxg6 {[%clk
0:02:56.8]} 8... hxg6 {[%clk 0:02:47.7]} 9. Bd2 {[%clk 0:02:56.6]} 9... Nbd7
{[%clk 0:02:44.4]} 10. Qb3 {[%clk 0:02:56.4]} 10... Qb6 {[%clk 0:02:42.4]} 11.
Bf3 {[%clk 0:02:56.5]} 11... dxc4 {[%clk 0:02:39.6]} 12. Qxc4 {[%clk 0:02:43.4]}
12... Nd5 {[%clk 0:02:17.7]} 13. Na4 {[%clk 0:02:32]} 13... Qc7 {[%clk 0:02:14]}
14. Nc5 {[%clk 0:02:01.9]} 14... Bxc5 {[%clk 0:01:55.1]} 15. dxc5 {[%clk
0:02:02.8]} 15... Ne5 {[%clk 0:01:55.5]} 16. Qe2 {[%clk 0:01:55.3]} 16... O-O-O
{[%clk 0:01:45.5]} 17. g3 {[%clk 0:01:41.5]} 17... Nf6 {[%clk 0:01:23.3]} 18.
O-O {[%clk 0:01:30.3]} 18... Rxd2 {[%clk 0:01:19]} 19. Qxd2 {[%clk 0:01:29.1]}
19... Nxf3+ {[%clk 0:01:19]} 20. Kh1 {[%clk 0:01:24.7]} 20... Rxh2# {[%clk
0:01:17.7]} 0-1

[Event "Early-Titled-Tuesday-Blitz-January-30-2024"]
[Site "Chess.com"]
[Date "2024.01.30"]
[Round "3"]
[White "rikchessmx"]
[Black "azikom"]
[Result "0-1"]
[WhiteElo "2316"]
[BlackElo "2714"]
[TimeControl "180+1"]
[EndTime "8:27:25 PST"]
[Termination "azikom won by resignation"]

1. e4 {[%clk 0:03:00.9]} 1... c5 {[%clk 0:03:00.1]} 2. Nf3 {[%clk 0:03:00.6]}
2... e6 {[%clk 0:03:01]} 3. d4 {[%clk 0:02:59.4]} 3... cxd4 {[%clk 0:03:01.9]}
4. Nxd4 {[%clk 0:03:00]} 4... a6 {[%clk 0:03:02.4]} 5. Nc3 {[%clk 0:02:59.3]}
5... b5 {[%clk 0:03:02.5]} 6. a3 {[%clk 0:02:58.1]} 6... Bb7 {[%clk 0:03:02.8]}
7. Bd3 {[%clk 0:02:58]} 7... Nc6 {[%clk 0:03:02.3]} 8. Nde2 {[%clk 0:02:57.9]}
8... Nf6 {[%clk 0:03:01.4]} 9. f4 {[%clk 0:02:57.8]} 9... d6 {[%clk 0:03:01.8]}
10. O-O {[%clk 0:02:57.4]} 10... Be7 {[%clk 0:03:02.2]} 11. h3 {[%clk
0:02:55.4]} 11... O-O {[%clk 0:03:01.8]} 12. g4 {[%clk 0:02:55.5]} 12... Nd7
{[%clk 0:03:00.1]} 13. Be3 {[%clk 0:02:49]} 13... b4 {[%clk 0:02:59.2]} 14. Na4
{[%clk 0:02:46.5]} 14... bxa3 {[%clk 0:02:57.9]} 15. bxa3 {[%clk 0:02:46]} 15...
Qc7 {[%clk 0:02:55.2]} 16. Qe1 {[%clk 0:02:43.9]} 16... Rab8 {[%clk 0:02:53.4]}
17. Qf2 {[%clk 0:02:43.5]} 17... Na5 {[%clk 0:02:40.7]} 18. Nb6 {[%clk
0:02:34.6]} 18... Nc5 {[%clk 0:02:33.4]} 19. Bxc5 {[%clk 0:02:28.6]} 19... dxc5
{[%clk 0:02:34.3]} 20. Nc4 {[%clk 0:02:28.2]} 20... Nxc4 {[%clk 0:02:31.8]} 21.
Bxc4 {[%clk 0:02:28.3]} 21... Bxe4 {[%clk 0:02:32.3]} 22. Bxa6 {[%clk
0:02:28.2]} 22... Bxc2 {[%clk 0:02:27.1]} 23. Ng3 {[%clk 0:02:27.8]} 23... Bb3
{[%clk 0:02:23.2]} 24. Nh5 {[%clk 0:02:09.5]} 24... g6 {[%clk 0:02:20]} 25. Ng3
{[%clk 0:01:44]} 25... Bd5 {[%clk 0:02:05]} 26. Be2 {[%clk 0:01:39.3]} 26... Rb3
{[%clk 0:02:02.8]} 27. Kh2 {[%clk 0:01:32.1]} 27... Bh4 {[%clk 0:02:01.6]} 28.
Rg1 {[%clk 0:01:28.5]} 28... Rfb8 {[%clk 0:02:02]} 29. a4 {[%clk 0:01:23.4]}
29... Rb2 {[%clk 0:01:57.7]} 30. Qe3 {[%clk 0:01:20.4]} 30... R8b3 {[%clk
0:01:53.4]} 0-1

[Event "Early-Titled-Tuesday-Blitz-January-30-2024"]
[Site "Chess.com"]
[Date "2024.01.30"]
[Round "3"]
[White "almaguerjm"]
[Black "karinachess1"]
[Result "0-1"]
[WhiteElo "2460"]
[BlackElo "2634"]
[TimeControl "180+1"]
[EndTime "8:27:31 PST"]
[Termination "karinachess1 won by resignation"]

1. e4 {[%clk 0:03:00.9]} 1... e5 {[%clk 0:03:00.4]} 2. Nf3 {[%clk 0:02:51.8]}
2... Nc6 {[%clk 0:03:00.5]} 3. Bc4 {[%clk 0:02:49.8]} 3... Nf6 {[%clk
0:03:00.2]} 4. Ng5 {[%clk 0:02:44.8]} 4... d5 {[%clk 0:03:00.3]} 5. exd5 {[%clk
0:02:45.7]} 5... Na5 {[%clk 0:03:00.6]} 6. Bb5+ {[%clk 0:02:46.3]} 6... c6
{[%clk 0:03:01.2]} 7. dxc6 {[%clk 0:02:47.2]} 7... bxc6 {[%clk 0:03:02.1]} 8.
Bd3 {[%clk 0:02:46.9]} 8... h6 {[%clk 0:02:59.5]} 9. Ne4 {[%clk 0:02:45.9]} 9...
Nxe4 {[%clk 0:02:59.6]} 10. Bxe4 {[%clk 0:02:46.3]} 10... Be7 {[%clk 0:02:55.4]}
11. g4 {[%clk 0:02:25.8]} 11... O-O {[%clk 0:02:53.1]} 12. Qf3 {[%clk
0:02:25.9]} 12... Be6 {[%clk 0:02:28.1]} 13. d3 {[%clk 0:02:23.7]} 13... Rb8
{[%clk 0:02:08.5]} 14. Qg3 {[%clk 0:02:10.8]} 14... Bh4 {[%clk 0:01:30.3]} 15.
Qxe5 {[%clk 0:02:04.4]} 15... Bf6 {[%clk 0:01:30.5]} 16. Qg3 {[%clk 0:02:00]}
16... Rxb2 {[%clk 0:01:18]} 17. c3 {[%clk 0:01:56.8]} 17... Rxa2 {[%clk
0:01:07.3]} 18. Rxa2 {[%clk 0:01:49.2]} 18... Bxa2 {[%clk 0:01:08.2]} 19. d4
{[%clk 0:01:42.8]} 19... Re8 {[%clk 0:01:06.1]} 20. Nd2 {[%clk 0:01:38.8]} 20...
Bd5 {[%clk 0:01:04.6]} 21. f3 {[%clk 0:01:39.3]} 21... Bh4 {[%clk 0:01:01]} 0-1

[Event "Early-Titled-Tuesday-Blitz-January-30-2024"]
[Site "Chess.com"]
[Date "2024.01.30"]
[Round "3"]
[White "lachesisQ"]
[Black "VeraVujovic"]
[Result "1-0"]
[WhiteElo "3138"]
[BlackElo "2265"]
[TimeControl "180+1"]
[EndTime "8:27:32 PST"]
[Termination "lachesisQ won by resignation"]

1. e4 {[%clk 0:03:00.9]} 1... e5 {[%clk 0:02:57]} 2. f4 {[%clk 0:02:54]} 2... d6
{[%clk 0:02:55.5]} 3. Nc3 {[%clk 0:02:53]} 3... Nf6 {[%clk 0:02:50.3]} 4. d4
{[%clk 0:02:49.1]} 4... Nc6 {[%clk 0:02:43.7]} 5. dxe5 {[%clk 0:02:44]} 5...
dxe5 {[%clk 0:02:44.6]} 6. Qxd8+ {[%clk 0:02:44]} 6... Kxd8 {[%clk 0:02:43.2]}
7. Nf3 {[%clk 0:02:42.7]} 7... Bb4 {[%clk 0:02:38.3]} 8. Bd2 {[%clk 0:02:34.8]}
8... Bxc3 {[%clk 0:02:15.5]} 9. Bxc3 {[%clk 0:02:35.7]} 9... Nxe4 {[%clk
0:02:15.5]} 10. Nxe5 {[%clk 0:02:30.8]} 10... Nxe5 {[%clk 0:02:04.7]} 11. Bxe5
{[%clk 0:02:30.1]} 11... f6 {[%clk 0:01:58.6]} 12. O-O-O+ {[%clk 0:02:29.9]}
12... Bd7 {[%clk 0:01:56.3]} 13. Bd4 {[%clk 0:02:27.4]} 13... c5 {[%clk
0:01:53.7]} 14. Bd3 {[%clk 0:02:27.1]} 14... Re8 {[%clk 0:01:34.8]} 15. Rhe1
{[%clk 0:02:26.3]} 15... cxd4 {[%clk 0:01:14.4]} 16. Bxe4 {[%clk 0:02:25.1]}
16... Kc7 {[%clk 0:01:09.7]} 17. Rxd4 {[%clk 0:02:24.8]} 17... f5 {[%clk
0:01:08.2]} 18. Red1 {[%clk 0:02:25]} 18... Be6 {[%clk 0:01:01.8]} 19. Bd5
{[%clk 0:02:22.6]} 19... Rad8 {[%clk 0:00:58]} 20. Bxe6 {[%clk 0:02:21.7]} 20...
Rxd4 {[%clk 0:00:57.9]} 21. Rxd4 {[%clk 0:02:22.6]} 21... Rxe6 {[%clk
0:00:58.1]} 22. Kd2 {[%clk 0:02:23.4]} 22... Rb6 {[%clk 0:00:50.2]} 23. b3
{[%clk 0:02:23]} 23... Rb5 {[%clk 0:00:50.2]} 24. a4 {[%clk 0:02:21.7]} 24...
Rc5 {[%clk 0:00:49.7]} 25. c4 {[%clk 0:02:20.9]} 25... a5 {[%clk 0:00:48.6]} 26.
Kc3 {[%clk 0:02:20.1]} 26... g6 {[%clk 0:00:35]} 27. Rd5 {[%clk 0:02:20]} 27...
Rc6 {[%clk 0:00:35.5]} 28. Rxa5 {[%clk 0:02:19.6]} 28... Re6 {[%clk 0:00:36.2]}
29. Re5 {[%clk 0:02:19.3]} 29... Rd6 {[%clk 0:00:36]} 30. Re1 {[%clk 0:02:18.9]}
1-0